[Event "Early-Titled-Tuesday-Blitz-May-28-2024"]
[Site "Chess.com"]
[Date "2024.05.28"]
[Round "8"]
[White "kuchma777"]
[Black "chess_blitz00"]
[Result "0-1"]
[WhiteElo "2483"]
[BlackElo "2324"]
[TimeControl "180+1"]
[EndTime "9:30:58 PDT"]
[Termination "chess_blitz00 won by resignation"]

1. e4 {[%clk 0:03:00.9]} 1... c5 {[%clk 0:02:59.5]} 2. Nf3 {[%clk 0:03:01.1]}
2... d6 {[%clk 0:02:59.1]} 3. d4 {[%clk 0:02:58.3]} 3... cxd4 {[%clk 0:03:00]}
4. Nxd4 {[%clk 0:02:58.5]} 4... Nf6 {[%clk 0:03:00.9]} 5. Nc3 {[%clk 0:02:58.5]}
5... Nc6 {[%clk 0:03:00.5]} 6. Rg1 {[%clk 0:02:55.6]} 6... e5 {[%clk 0:02:56.3]}
7. Nb3 {[%clk 0:02:55.4]} 7... Be6 {[%clk 0:02:50.7]} 8. g4 {[%clk 0:02:54.1]}
8... Be7 {[%clk 0:02:50.1]} 9. g5 {[%clk 0:02:51.7]} 9... Nd7 {[%clk 0:02:50.3]}
10. Be3 {[%clk 0:02:51.3]} 10... O-O {[%clk 0:02:49.6]} 11. Qd2 {[%clk
0:02:51.5]} 11... Nc5 {[%clk 0:02:47.7]} 12. Nxc5 {[%clk 0:02:50.4]} 12... dxc5
{[%clk 0:02:48.6]} 13. Nd5 {[%clk 0:02:50.8]} 13... Bxd5 {[%clk 0:02:47.2]} 14.
exd5 {[%clk 0:02:50.7]} 14... Nd4 {[%clk 0:02:47.2]} 15. Bg2 {[%clk 0:02:48.7]}
15... f5 {[%clk 0:02:39.4]} 16. gxf6 {[%clk 0:02:45.8]} 16... Rxf6 {[%clk
0:02:39.6]} 17. O-O-O {[%clk 0:02:43.8]} 17... Kh8 {[%clk 0:02:31.9]} 18. Be4
{[%clk 0:02:38.2]} 18... Qd6 {[%clk 0:02:24.8]} 19. c3 {[%clk 0:02:28.7]} 19...
Nf3 {[%clk 0:02:16.7]} 20. Bxf3 {[%clk 0:02:28.3]} 20... Rxf3 {[%clk 0:02:17.6]}
21. Rg3 {[%clk 0:02:26.6]} 21... Rxg3 {[%clk 0:02:14.4]} 22. hxg3 {[%clk
0:02:27.5]} 22... e4 {[%clk 0:02:11.6]} 23. Bf4 {[%clk 0:02:26.4]} 23... Qd7
{[%clk 0:02:08.5]} 24. Qe3 {[%clk 0:02:19.9]} 24... Qf5 {[%clk 0:02:01.2]} 25.
d6 {[%clk 0:02:17.3]} 25... Bf6 {[%clk 0:02:01.6]} 26. f3 {[%clk 0:02:00.5]}
26... g5 {[%clk 0:01:53]} 27. fxe4 {[%clk 0:01:54.4]} 27... gxf4 {[%clk
0:01:51.4]} 28. gxf4 {[%clk 0:01:55.3]} 28... Qe6 {[%clk 0:01:51.3]} 29. e5
{[%clk 0:01:51.2]} 29... Bg7 {[%clk 0:01:26.8]} 30. Qxc5 {[%clk 0:01:23.1]}
30... Qf5 {[%clk 0:01:23.9]} 31. d7 {[%clk 0:01:12.1]} 31... Qxf4+ {[%clk
0:01:19.1]} 32. Kb1 {[%clk 0:01:11.9]} 32... Rd8 {[%clk 0:01:19.3]} 33. e6
{[%clk 0:00:35.7]} 33... Qe4+ {[%clk 0:01:14.5]} 34. Ka1 {[%clk 0:00:35.9]}
34... Qxe6 {[%clk 0:01:15]} 35. Qc7 {[%clk 0:00:32.9]} 35... Qb6 {[%clk
0:01:08.7]} 36. Qc8 {[%clk 0:00:09.9]} 36... Bf6 {[%clk 0:00:56]} 37. Qc4 {[%clk
0:00:06.6]} 37... Qc6 {[%clk 0:00:49.8]} 38. Qf7 {[%clk 0:00:06.7]} 38... Bg7
{[%clk 0:00:11.4]} 39. Qe7 {[%clk 0:00:02.9]} 39... Qf6 {[%clk 0:00:09.2]} 40.
Qe8+ {[%clk 0:00:02.3]} 40... Qf8 {[%clk 0:00:06.5]} 41. Qe6 {[%clk 0:00:02.4]}
41... h6 {[%clk 0:00:04.6]} 42. a3 {[%clk 0:00:02]} 42... Kh7 {[%clk 0:00:04.6]}
43. Qe4+ {[%clk 0:00:01.8]} 43... Kh8 {[%clk 0:00:04.7]} 44. Ka2 {[%clk
0:00:01.8]} 44... Qf7+ {[%clk 0:00:04.6]} 45. c4 {[%clk 0:00:02.4]} 45... Rxd7
{[%clk 0:00:04.2]} 46. Re1 {[%clk 0:00:01.6]} 46... Rd8 {[%clk 0:00:03.1]} 47.
Re2 {[%clk 0:00:02]} 47... Rf8 {[%clk 0:00:03.5]} 48. a4 {[%clk 0:00:02.3]}
48... b6 {[%clk 0:00:03.9]} 49. Qc6 {[%clk 0:00:02]} 49... a5 {[%clk 0:00:03.2]}
50. Re4 {[%clk 0:00:02.2]} 50... Qf6 {[%clk 0:00:02.7]} 51. Qxf6 {[%clk
0:00:01]} 51... Rxf6 {[%clk 0:00:02.6]} 52. Re6 {[%clk 0:00:01.9]} 52... Rxe6
{[%clk 0:00:02.7]} 53. c5 {[%clk 0:00:01.8]} 53... bxc5 {[%clk 0:00:02.7]} 54.
Kb3 {[%clk 0:00:02.7]} 54... Rb6+ {[%clk 0:00:03.3]} 55. Kc4 {[%clk 0:00:03.6]}
55... Rb4+ {[%clk 0:00:04.1]} 56. Kxc5 {[%clk 0:00:04.3]} 56... Bxb2 {[%clk
0:00:04.1]} 0-1

[Event "Early-Titled-Tuesday-Blitz-May-28-2024"]
[Site "Chess.com"]
[Date "2024.05.28"]
[Round "8"]
[White "Andrii_Prydun"]
[Black "JAN2404"]
[Result "1-0"]
[WhiteElo "2373"]
[BlackElo "1968"]
[TimeControl "180+1"]
[EndTime "9:31:00 PDT"]
[Termination "Andrii_Prydun won by resignation"]

1. Nf3 {[%clk 0:02:09.9]} 1... c5 {[%clk 0:02:58.7]} 2. e4 {[%clk 0:02:09.3]}
2... d6 {[%clk 0:02:58.3]} 3. d4 {[%clk 0:02:09.2]} 3... cxd4 {[%clk 0:02:58.7]}
4. Nxd4 {[%clk 0:02:09.7]} 4... Nf6 {[%clk 0:02:58.8]} 5. Nc3 {[%clk 0:02:10.3]}
5... Nc6 {[%clk 0:02:58.8]} 6. Be3 {[%clk 0:02:09.5]} 6... Ng4 {[%clk
0:02:58.3]} 7. Bc1 {[%clk 0:02:07.9]} 7... g6 {[%clk 0:02:54.5]} 8. f3 {[%clk
0:02:06.6]} 8... Nf6 {[%clk 0:02:52.7]} 9. Be3 {[%clk 0:02:06.4]} 9... Bg7
{[%clk 0:02:51.9]} 10. Qd2 {[%clk 0:01:21.8]} 10... Bd7 {[%clk 0:02:50.8]} 11.
O-O-O {[%clk 0:01:21.5]} 11... a6 {[%clk 0:02:50.1]} 12. g4 {[%clk 0:01:20.2]}
12... O-O {[%clk 0:02:44.6]} 13. h4 {[%clk 0:01:19.7]} 13... h5 {[%clk
0:02:42.9]} 14. g5 {[%clk 0:01:17.4]} 14... Ne8 {[%clk 0:02:42.4]} 15. f4 {[%clk
0:01:15.4]} 15... b5 {[%clk 0:02:39.1]} 16. Nd5 {[%clk 0:01:13]} 16... Rc8
{[%clk 0:02:32.6]} 17. Nxc6 {[%clk 0:01:10.3]} 17... Bxc6 {[%clk 0:02:24]} 18.
Bg2 {[%clk 0:01:09.7]} 18... Bxd5 {[%clk 0:02:10.4]} 19. exd5 {[%clk 0:01:09.2]}
19... Nc7 {[%clk 0:01:46]} 20. Rhe1 {[%clk 0:00:14.9]} 20... Na8 {[%clk
0:01:41]} 21. Kb1 {[%clk 0:00:15.8]} 21... Nb6 {[%clk 0:01:40.6]} 22. b3 {[%clk
0:00:16.4]} 22... Bc3 {[%clk 0:01:36]} 23. Qd3 {[%clk 0:00:16.3]} 23... Nd7
{[%clk 0:01:23.4]} 24. Be4 {[%clk 0:00:16.1]} 24... Qa5 {[%clk 0:01:16.7]} 25.
Bd4 {[%clk 0:00:09.1]} 25... Bxd4 {[%clk 0:00:15.1]} 26. Qxd4 {[%clk 0:00:10]}
26... Qc3 {[%clk 0:00:14.8]} 27. Qxc3 {[%clk 0:00:09.6]} 27... Rxc3 {[%clk
0:00:14.8]} 28. Rd3 {[%clk 0:00:09.9]} 28... Rfc8 {[%clk 0:00:13.8]} 29. Rxc3
{[%clk 0:00:08.3]} 29... Rxc3 {[%clk 0:00:13.5]} 30. Bd3 {[%clk 0:00:08.2]}
30... Kf8 {[%clk 0:00:10.2]} 31. Kb2 {[%clk 0:00:05.5]} 31... b4 {[%clk
0:00:04.4]} 32. a3 {[%clk 0:00:05.3]} 32... a5 {[%clk 0:00:04.2]} 33. axb4
{[%clk 0:00:05.9]} 33... axb4 {[%clk 0:00:04.2]} 34. Re4 {[%clk 0:00:06.8]}
34... Nc5 {[%clk 0:00:01.3]} 35. Rxb4 {[%clk 0:00:07.4]} 35... Rxd3 {[%clk
0:00:01]} 36. cxd3 {[%clk 0:00:08.3]} 36... Nxd3+ {[%clk 0:00:01]} 37. Kc3
{[%clk 0:00:08]} 37... Nxb4 {[%clk 0:00:01.9]} 38. Kxb4 {[%clk 0:00:08.9]} 38...
Ke8 {[%clk 0:00:02.2]} 39. Kb5 {[%clk 0:00:08.3]} 39... Kd8 {[%clk 0:00:02.7]}
40. Ka6 {[%clk 0:00:08.4]} 40... Kc8 {[%clk 0:00:03]} 41. Ka7 {[%clk 0:00:08.8]}
41... e5 {[%clk 0:00:02.5]} 42. b4 {[%clk 0:00:09.7]} 42... e4 {[%clk
0:00:02.6]} 43. b5 {[%clk 0:00:10.6]} 43... e3 {[%clk 0:00:03]} 44. b6 {[%clk
0:00:11.5]} 44... e2 {[%clk 0:00:03.4]} 45. b7+ {[%clk 0:00:12.4]} 45... Kd7
{[%clk 0:00:03.4]} 46. b8=Q {[%clk 0:00:12.7]} 46... e1=Q {[%clk 0:00:03.7]} 47.
Qb7+ {[%clk 0:00:07.8]} 47... Ke8 {[%clk 0:00:03.9]} 48. Qc6+ {[%clk 0:00:07.9]}
48... Kf8 {[%clk 0:00:03.9]} 49. Qxd6+ {[%clk 0:00:08.2]} 49... Kg7 {[%clk
0:00:01.7]} 50. Qe5+ {[%clk 0:00:07.2]} 50... Qxe5 {[%clk 0:00:01.9]} 51. fxe5
{[%clk 0:00:08.1]} 51... Kf8 {[%clk 0:00:02.1]} 52. Kb7 {[%clk 0:00:08]} 52...
Ke7 {[%clk 0:00:03]} 53. Kc7 {[%clk 0:00:08.4]} 53... f5 {[%clk 0:00:02]} 54.
exf6+ {[%clk 0:00:07.6]} 54... Kf7 {[%clk 0:00:02.5]} 55. d6 {[%clk 0:00:08.1]}
55... Kf8 {[%clk 0:00:02.6]} 56. d7 {[%clk 0:00:09]} 56... Kf7 {[%clk
0:00:03.5]} 57. Kd6 {[%clk 0:00:08.4]} 1-0

[Event "Early-Titled-Tuesday-Blitz-May-28-2024"]
[Site "Chess.com"]
[Date "2024.05.28"]
[Round "8"]
[White "MarlonJodar"]
[Black "martinmena"]
[Result "1-0"]
[WhiteElo "2317"]
[BlackElo "2136"]
[TimeControl "180+1"]
[EndTime "9:31:01 PDT"]
[Termination "MarlonJodar won on time"]

1. e4 {[%clk 0:03:00.9]} 1... c6 {[%clk 0:02:59.7]} 2. Nf3 {[%clk 0:02:57.9]}
2... d5 {[%clk 0:03:00.6]} 3. exd5 {[%clk 0:02:58.2]} 3... cxd5 {[%clk
0:02:59.7]} 4. Ne5 {[%clk 0:02:58.5]} 4... Nc6 {[%clk 0:02:49.4]} 5. d4 {[%clk
0:02:58.1]} 5... Nf6 {[%clk 0:02:45.9]} 6. c3 {[%clk 0:02:54.8]} 6... Bf5 {[%clk
0:02:44.2]} 7. Bb5 {[%clk 0:02:52.5]} 7... Qc7 {[%clk 0:02:26.1]} 8. Bf4 {[%clk
0:02:48.1]} 8... Qb6 {[%clk 0:02:19]} 9. Qa4 {[%clk 0:02:47.5]} 9... Rc8 {[%clk
0:02:16.9]} 10. Nxc6 {[%clk 0:02:26.7]} 10... bxc6 {[%clk 0:02:15.7]} 11. Ba6
{[%clk 0:02:26.5]} 11... Rd8 {[%clk 0:01:58]} 12. Nd2 {[%clk 0:02:21]} 12... e6
{[%clk 0:01:57.1]} 13. b4 {[%clk 0:02:15.8]} 13... Bd6 {[%clk 0:01:55.4]} 14.
Bxd6 {[%clk 0:02:15.1]} 14... Rxd6 {[%clk 0:01:55.2]} 15. O-O {[%clk 0:02:13.1]}
15... O-O {[%clk 0:01:51.8]} 16. Rfe1 {[%clk 0:02:12.6]} 16... Ne4 {[%clk
0:01:48.9]} 17. Nxe4 {[%clk 0:02:09.2]} 17... Bxe4 {[%clk 0:01:47.7]} 18. Re3
{[%clk 0:02:09.3]} 18... c5 {[%clk 0:01:37]} 19. b5 {[%clk 0:01:43.1]} 19...
cxd4 {[%clk 0:01:18.9]} 20. cxd4 {[%clk 0:01:44]} 20... Rd7 {[%clk 0:01:11.8]}
21. Rc1 {[%clk 0:01:41.9]} 21... Rc7 {[%clk 0:01:08.2]} 22. Rec3 {[%clk
0:01:41.4]} 22... Rxc3 {[%clk 0:00:58]} 23. Rxc3 {[%clk 0:01:42.3]} 23... e5
{[%clk 0:00:23.9]} 24. dxe5 {[%clk 0:01:40.7]} 24... d4 {[%clk 0:00:20.1]} 25.
Rc1 {[%clk 0:01:40.9]} 25... Re8 {[%clk 0:00:16.5]} 26. Rd1 {[%clk 0:01:31.6]}
26... Rxe5 {[%clk 0:00:02.2]} 27. Qxd4 {[%clk 0:01:30.3]} 27... Rd5 {[%clk
0:00:01.9]} 28. Qa1 {[%clk 0:01:25.9]} 28... Rxd1+ {[%clk 0:00:01.7]} 29. Qxd1
{[%clk 0:01:25.5]} 29... g6 {[%clk 0:00:01.9]} 30. h3 {[%clk 0:01:21]} 30... Bf5
{[%clk 0:00:01.9]} 31. a4 {[%clk 0:01:20.6]} 31... Be6 {[%clk 0:00:02]} 32. Qd2
{[%clk 0:01:19.1]} 32... Qc5 {[%clk 0:00:01.3]} 33. a5 {[%clk 0:01:15.2]} 33...
Kg7 {[%clk 0:00:01.7]} 34. Qb2+ {[%clk 0:01:11.1]} 34... Kg8 {[%clk 0:00:01.7]}
35. b6 {[%clk 0:01:09]} 35... axb6 {[%clk 0:00:01.6]} 36. axb6 {[%clk
0:01:09.9]} 36... Qd6 {[%clk 0:00:01]} 37. b7 {[%clk 0:01:07.5]} 37... Qb8
{[%clk 0:00:01.5]} 38. Qb5 {[%clk 0:00:52.1]} 38... Kg7 {[%clk 0:00:01.6]} 39.
Qc5 {[%clk 0:00:46.1]} 39... Kg8 {[%clk 0:00:01.7]} 40. Qc8+ {[%clk 0:00:43.3]}
40... Bxc8 {[%clk 0:00:02.3]} 41. bxc8=Q+ {[%clk 0:00:43.1]} 41... Qxc8 {[%clk
0:00:02.9]} 42. Bxc8 {[%clk 0:00:43.6]} 42... Kg7 {[%clk 0:00:03.5]} 43. Kf1
{[%clk 0:00:43.1]} 43... f6 {[%clk 0:00:04.2]} 44. Ke2 {[%clk 0:00:43.8]} 44...
Kf7 {[%clk 0:00:04.8]} 45. Ke3 {[%clk 0:00:44.3]} 45... Ke7 {[%clk 0:00:05.4]}
46. Kd4 {[%clk 0:00:45]} 46... g5 {[%clk 0:00:05.4]} 47. Kd5 {[%clk 0:00:44.5]}
47... h6 {[%clk 0:00:05.4]} 48. Bf5 {[%clk 0:00:43.3]} 48... h5 {[%clk
0:00:05.3]} 49. Bg6 {[%clk 0:00:42.5]} 49... h4 {[%clk 0:00:05.1]} 50. Bf5
{[%clk 0:00:41.9]} 50... Kf7 {[%clk 0:00:02.4]} 51. Kd6 {[%clk 0:00:42.8]} 51...
Kf8 {[%clk 0:00:01.5]} 52. Ke6 {[%clk 0:00:42.7]} 52... Kg7 {[%clk 0:00:02.2]}
53. Ke7 {[%clk 0:00:43]} 53... Kh6 {[%clk 0:00:02.4]} 54. Be4 {[%clk 0:00:29.9]}
54... Kg7 {[%clk 0:00:01.3]} 55. Bc6 {[%clk 0:00:20.4]} 55... f5 {[%clk
0:00:01.1]} 56. Ke6 {[%clk 0:00:20]} 56... Kg6 {[%clk 0:00:01.3]} 57. Be8+
{[%clk 0:00:19.4]} 57... Kh6 {[%clk 0:00:01.2]} 58. Kxf5 {[%clk 0:00:19.1]}
58... Kh7 {[%clk 0:00:00.7]} 59. Kxg5 {[%clk 0:00:18.9]} 59... Kg7 {[%clk
0:00:01.4]} 60. Kxh4 {[%clk 0:00:19.3]} 1-0

[Event "Early-Titled-Tuesday-Blitz-May-28-2024"]
[Site "Chess.com"]
[Date "2024.05.28"]
[Round "8"]
[White "JeFumeDesClopes"]
[Black "Djager97"]
[Result "1/2-1/2"]
[WhiteElo "2701"]
[BlackElo "2554"]
[TimeControl "180+1"]
[EndTime "9:31:02 PDT"]
[Termination "Game drawn by repetition"]

1. Nf3 {[%clk 0:03:00.9]} 1... d5 {[%clk 0:03:00.1]} 2. g3 {[%clk 0:03:00.7]}
2... Nd7 {[%clk 0:02:59.6]} 3. Bg2 {[%clk 0:02:58.8]} 3... e5 {[%clk 0:02:59.9]}
4. d3 {[%clk 0:02:58.4]} 4... Ngf6 {[%clk 0:03:00.4]} 5. c4 {[%clk 0:02:56.8]}
5... c6 {[%clk 0:02:57.6]} 6. O-O {[%clk 0:02:57]} 6... Bd6 {[%clk 0:02:57.5]}
7. Nbd2 {[%clk 0:02:57.2]} 7... O-O {[%clk 0:02:57.3]} 8. e4 {[%clk 0:02:56.9]}
8... dxe4 {[%clk 0:02:47.6]} 9. Nxe4 {[%clk 0:02:52.7]} 9... Nxe4 {[%clk
0:02:45.6]} 10. dxe4 {[%clk 0:02:53.6]} 10... Qc7 {[%clk 0:02:37.5]} 11. Nh4
{[%clk 0:02:47.1]} 11... Rd8 {[%clk 0:02:30.6]} 12. Bg5 {[%clk 0:02:38.4]} 12...
f6 {[%clk 0:02:28.6]} 13. Be3 {[%clk 0:02:36.9]} 13... Bc5 {[%clk 0:02:24]} 14.
Qe2 {[%clk 0:02:19.2]} 14... Bxe3 {[%clk 0:02:20.3]} 15. Qxe3 {[%clk 0:02:20.1]}
15... Nf8 {[%clk 0:02:20.5]} 16. Rad1 {[%clk 0:02:08.5]} 16... Ne6 {[%clk
0:02:17.5]} 17. Bh3 {[%clk 0:02:04.8]} 17... Nd4 {[%clk 0:02:13.9]} 18. Bxc8
{[%clk 0:02:02.9]} 18... Raxc8 {[%clk 0:02:14.8]} 19. f4 {[%clk 0:01:52.2]}
19... Qb6 {[%clk 0:01:55.7]} 20. Rf2 {[%clk 0:01:35.9]} 20... Qc5 {[%clk
0:01:24.3]} 21. b3 {[%clk 0:01:31.9]} 21... Rd7 {[%clk 0:01:12]} 22. Kg2 {[%clk
0:01:26.7]} 22... Rcd8 {[%clk 0:01:11.4]} 23. fxe5 {[%clk 0:01:07.9]} 23... Qxe5
{[%clk 0:01:09.1]} 24. Nf5 {[%clk 0:00:40.7]} 24... Nxf5 {[%clk 0:01:02.5]} 25.
Rxf5 {[%clk 0:00:39.6]} 25... Qxf5 {[%clk 0:00:42.1]} 26. exf5 {[%clk
0:00:39.2]} 26... Rxd1 {[%clk 0:00:42.5]} 27. Qxa7 {[%clk 0:00:39.3]} 27... R8d7
{[%clk 0:00:38.6]} 28. b4 {[%clk 0:00:35.9]} 28... R1d2+ {[%clk 0:00:32.2]} 29.
Kh3 {[%clk 0:00:35]} 29... h6 {[%clk 0:00:29.4]} 30. b5 {[%clk 0:00:33.7]} 30...
cxb5 {[%clk 0:00:27.7]} 31. cxb5 {[%clk 0:00:34.6]} 31... Kh7 {[%clk 0:00:20]}
32. a4 {[%clk 0:00:34.1]} 32... Re7 {[%clk 0:00:18.2]} 33. a5 {[%clk 0:00:26.1]}
33... Ree2 {[%clk 0:00:16]} 34. Kg4 {[%clk 0:00:24.1]} 34... Re7 {[%clk
0:00:09.3]} 35. h4 {[%clk 0:00:20]} 35... Rdd7 {[%clk 0:00:08.1]} 36. Kh5 {[%clk
0:00:19]} 36... Re5 {[%clk 0:00:06.8]} 37. Kg4 {[%clk 0:00:17.6]} 37... Rxb5
{[%clk 0:00:06.1]} 38. a6 {[%clk 0:00:16]} 38... Rb4+ {[%clk 0:00:05.2]} 39. Kh3
{[%clk 0:00:15.4]} 39... Rb5 {[%clk 0:00:02.8]} 40. axb7 {[%clk 0:00:12.8]}
40... Rbxb7 {[%clk 0:00:02.7]} 41. Qa8 {[%clk 0:00:11.3]} 41... Rbc7 {[%clk
0:00:02.6]} 42. Qe8 {[%clk 0:00:11.5]} 42... Re7 {[%clk 0:00:02]} 43. Qg6+
{[%clk 0:00:11.5]} 43... Kh8 {[%clk 0:00:02.2]} 44. Qh5 {[%clk 0:00:09.6]} 44...
Re3 {[%clk 0:00:02]} 45. Qg6 {[%clk 0:00:04]} 45... Rcc3 {[%clk 0:00:02.6]} 46.
h5 {[%clk 0:00:03.7]} 46... Kg8 {[%clk 0:00:02]} 47. Kh4 {[%clk 0:00:02.9]}
47... Re4+ {[%clk 0:00:02]} 48. g4 {[%clk 0:00:02.4]} 48... Rcc4 {[%clk
0:00:02]} 49. Kh3 {[%clk 0:00:02.4]} 49... Rxg4 {[%clk 0:00:02.1]} 50. Qxg4
{[%clk 0:00:02.9]} 50... Rxg4 {[%clk 0:00:02.5]} 51. Kxg4 {[%clk 0:00:03.8]}
51... Kf8 {[%clk 0:00:02.3]} 52. Kf4 {[%clk 0:00:03.9]} 52... Ke7 {[%clk
0:00:02.8]} 53. Ke3 {[%clk 0:00:04.1]} 53... Kd6 {[%clk 0:00:02.3]} 54. Kd4
{[%clk 0:00:04.6]} 54... Kc6 {[%clk 0:00:02.7]} 55. Kc4 {[%clk 0:00:05.2]} 55...
Kd6 {[%clk 0:00:03.1]} 56. Kd4 {[%clk 0:00:05.8]} 56... Kc6 {[%clk 0:00:03.4]}
57. Kc4 {[%clk 0:00:06.4]} 57... Kd6 {[%clk 0:00:04]} 58. Kd4 {[%clk 0:00:07]}
1/2-1/2

[Event "Early-Titled-Tuesday-Blitz-May-28-2024"]
[Site "Chess.com"]
[Date "2024.05.28"]
[Round "8"]
[White "DonPreuss"]
[Black "RespectfulDaveOnYouTube"]
[Result "0-1"]
[WhiteElo "2301"]
[BlackElo "2494"]
[TimeControl "180+1"]
[EndTime "9:31:02 PDT"]
[Termination "RespectfulDaveOnYouTube won by checkmate"]

1. d4 {[%clk 0:03:00.9]} 1... c5 {[%clk 0:02:53.5]} 2. e4 {[%clk 0:03:00.3]}
2... cxd4 {[%clk 0:02:53]} 3. Qxd4 {[%clk 0:03:01.2]} 3... Nc6 {[%clk
0:02:53.2]} 4. Qd1 {[%clk 0:03:01.9]} 4... e5 {[%clk 0:02:48.2]} 5. Bd3 {[%clk
0:03:02.8]} 5... d5 {[%clk 0:02:34.5]} 6. exd5 {[%clk 0:03:01.9]} 6... Qxd5
{[%clk 0:02:35.4]} 7. Qf3 {[%clk 0:02:56.4]} 7... Be6 {[%clk 0:02:31.4]} 8. Be4
{[%clk 0:02:47.5]} 8... Qd7 {[%clk 0:02:01.8]} 9. Bxc6 {[%clk 0:02:45.6]} 9...
bxc6 {[%clk 0:02:01.4]} 10. Nc3 {[%clk 0:02:44.8]} 10... Nf6 {[%clk 0:01:44.7]}
11. Nge2 {[%clk 0:02:42.4]} 11... Be7 {[%clk 0:01:16.2]} 12. O-O {[%clk
0:02:39.8]} 12... O-O {[%clk 0:01:16.1]} 13. h3 {[%clk 0:02:37.8]} 13... Rab8
{[%clk 0:01:15.5]} 14. Ng3 {[%clk 0:02:37.4]} 14... Nd5 {[%clk 0:00:59.5]} 15.
Na4 {[%clk 0:01:42.1]} 15... f5 {[%clk 0:00:39.9]} 16. b3 {[%clk 0:01:41.8]}
16... e4 {[%clk 0:00:32.6]} 17. Qe2 {[%clk 0:01:38.6]} 17... Qc7 {[%clk
0:00:08.9]} 18. c4 {[%clk 0:01:30]} 18... Nf4 {[%clk 0:00:08.3]} 19. Bxf4 {[%clk
0:01:27.8]} 19... Qxf4 {[%clk 0:00:09.2]} 20. Qe3 {[%clk 0:01:19.2]} 20... Qxe3
{[%clk 0:00:08.9]} 21. fxe3 {[%clk 0:01:19.4]} 21... Rbd8 {[%clk 0:00:06.2]} 22.
Rad1 {[%clk 0:01:17.5]} 22... g6 {[%clk 0:00:04.5]} 23. Ne2 {[%clk 0:01:16.3]}
23... Bb4 {[%clk 0:00:01.9]} 24. Nd4 {[%clk 0:00:57.2]} 24... Bd7 {[%clk
0:00:02]} 25. Nc2 {[%clk 0:00:51.9]} 25... c5 {[%clk 0:00:01.5]} 26. a3 {[%clk
0:00:50.5]} 26... Bxa4 {[%clk 0:00:01.3]} 27. bxa4 {[%clk 0:00:40.3]} 27... Bd2
{[%clk 0:00:01.2]} 28. Rf2 {[%clk 0:00:36]} 28... Bc3 {[%clk 0:00:01.4]} 29. Rb1
{[%clk 0:00:32.8]} 29... Rd3 {[%clk 0:00:01.1]} 30. Re2 {[%clk 0:00:32.2]} 30...
Rf7 {[%clk 0:00:01]} 31. Kf1 {[%clk 0:00:31.2]} 31... Kg7 {[%clk 0:00:01.6]} 32.
Kf2 {[%clk 0:00:30.7]} 32... g5 {[%clk 0:00:01.6]} 33. Ne1 {[%clk 0:00:29.2]}
33... Rd2 {[%clk 0:00:01.1]} 34. Rxd2 {[%clk 0:00:26.8]} 34... Bxd2 {[%clk
0:00:02]} 35. Ke2 {[%clk 0:00:24.5]} 35... Bc3 {[%clk 0:00:02.3]} 36. g3 {[%clk
0:00:21.9]} 36... h5 {[%clk 0:00:02.1]} 37. Ng2 {[%clk 0:00:20.5]} 37... Kf6
{[%clk 0:00:02]} 38. h4 {[%clk 0:00:20.9]} 38... Rd7 {[%clk 0:00:01.7]} 39.
hxg5+ {[%clk 0:00:20.8]} 39... Kxg5 {[%clk 0:00:02.6]} 40. Rd1 {[%clk
0:00:20.4]} 40... Rxd1 {[%clk 0:00:02.7]} 41. Kxd1 {[%clk 0:00:20.9]} 41... Kg4
{[%clk 0:00:03]} 42. Nf4 {[%clk 0:00:19]} 42... Be5 {[%clk 0:00:03.3]} 43. Ng6
{[%clk 0:00:16.1]} 43... Bd6 {[%clk 0:00:03.1]} 44. Nh4 {[%clk 0:00:15]} 44...
Bxg3 {[%clk 0:00:01.6]} 45. Ng6 {[%clk 0:00:14.3]} 45... Bd6 {[%clk 0:00:02.1]}
46. Ke2 {[%clk 0:00:14.3]} 46... Kg5 {[%clk 0:00:01.8]} 47. Nh8 {[%clk
0:00:06.9]} 47... Kf6 {[%clk 0:00:02.1]} 48. a5 {[%clk 0:00:02.2]} 48... Kg7
{[%clk 0:00:02.4]} 49. a6 {[%clk 0:00:03.1]} 49... Kxh8 {[%clk 0:00:02.8]} 50.
Kf2 {[%clk 0:00:04]} 50... Bc7 {[%clk 0:00:03]} 51. a4 {[%clk 0:00:04.9]} 51...
Kg7 {[%clk 0:00:03.7]} 52. a5 {[%clk 0:00:05.8]} 52... Bxa5 {[%clk 0:00:04.3]}
53. Kg2 {[%clk 0:00:06.1]} 53... Kf6 {[%clk 0:00:05.2]} 54. Kh3 {[%clk 0:00:07]}
54... Kg5 {[%clk 0:00:05.7]} 55. Kg3 {[%clk 0:00:07.3]} 55... Bd2 {[%clk
0:00:06.6]} 56. Kh3 {[%clk 0:00:08.2]} 56... h4 {[%clk 0:00:07.5]} 57. Kg2
{[%clk 0:00:08.1]} 57... Bxe3 {[%clk 0:00:08.4]} 58. Kh3 {[%clk 0:00:08.8]}
58... Bd4 {[%clk 0:00:09.3]} 59. Kg2 {[%clk 0:00:08.8]} 59... Kg4 {[%clk
0:00:10.2]} 60. Kh2 {[%clk 0:00:08.9]} 60... f4 {[%clk 0:00:11.1]} 61. Kg2
{[%clk 0:00:09.8]} 61... e3 {[%clk 0:00:12]} 62. Kh2 {[%clk 0:00:10.5]} 62...
Be5 {[%clk 0:00:12.8]} 63. Kg2 {[%clk 0:00:11]} 63... f3+ {[%clk 0:00:13.7]} 64.
Kh1 {[%clk 0:00:10.3]} 64... Bg3 {[%clk 0:00:14.4]} 65. Kg1 {[%clk 0:00:10.5]}
65... e2 {[%clk 0:00:15.3]} 66. Kh1 {[%clk 0:00:08.5]} 66... e1=Q# {[%clk
0:00:16.2]} 0-1